Cogmind - Beta 15 @@@ ROGUE MODE // 2025.07.13 @ 19:43:21 Player: Rockstar Result: Destroyed by S-43 Plague with Heavy Machine Gun Performance ------------- Evolutions (9) 4500 Regions Visited (18) 3600 Robots Destroyed (47) 235 Value Destroyed (1579) 1579 Prototype IDs (14) 280 Alien Tech Used (0) 0 Bonus (1256) 1256 TOTAL SCORE: 11450 Bonus ------- Follower Combat Kills 456 Entered DSFs 500 Met Data Miner 300 Cogmind --------- Core Integrity 0/1600 Matter 216/300 Energy 57/100 System Corruption 6% Temperature Cool (0) Movement Core (50) Location -1/Access Parts ------- > --- POWER (4) -------- (None) > --- PROPULSION (10) -- (None) > --- UTILITY (9) ------ Machine Analyzer Advanced Sensor Array Advanced Signal Interpreter Advanced Melee Analysis Suite Core Analyzer > --- WEAPON (2) ------- (None) > --- INVENTORY (5) ---- Improved Fusion Compressor Wave Gun Power Sword Peak State ------------ > --- POWER ------------ Micro Fission Core Micro Fission Core > --- PROPULSION ------- Field Propulsion Array Field Propulsion Array Field Propulsion Array Impulse Thruster Array > --- UTILITY ---------- Advanced Heat Sink Structural Scanner Machine Analyzer Advanced Signal Interpreter Advanced Melee Analysis Suite Core Analyzer Improved Medium Armor Plating Hacking Suite > --- WEAPON ----------- Nova Cannon Phasing Sabre > --- INVENTORY -------- VTOL Module VTOL Module VTOL Module Wave Gun Power Sword [Rating: 115] Favorites ----------- Power Improved Deuterium Engine Engine Improved Deuterium Engine Power Core Micro Fission Core Propulsion Aluminum Leg Treads Light Treads Leg Aluminum Leg Wheel Wheel Hover Unit Linear Gravjet Flight Unit VTOL Module Utility Large Storage Unit Device Advanced Weight Redist. System Storage Large Storage Unit Processor Targeting Computer Hackware Hacking Suite Protection Hardened Light Armor Plating Weapon Field Laser Energy Gun Field Laser Energy Cannon Nova Cannon Ballistic Gun Assault Rifle Special Weapon Plasma Cutter Slashing Weapon Phasing Sabre Piercing Weapon Lance Build | -11 -10 -10 -9 -9 -8 -7 -7 -7 -7 -6 -6 -6 -5 -4 -4 -3 -2 -1 ------- Run | Yrd Mat Min Mat Min Mat Fac Low Low Dat Pro Fac DSF Fac Fac Ext Res Res Acc Slots Evolved 18 | . . . 2 . 2 2 . . . . 2 . 2 2 . 2 2 2 Power 3 | . . . . . . 1 . . . . . . . . . 1 . 1 Propulsion 8 | . . . 2 . . . . . . . 2 . . 2 . . 2 . Utility 7 | . . . . . 2 1 . . . . . . 2 . . 1 . 1 Weapon . | . . . . . . . . . . . . . . . . . . . Parts Attached 109 | 6 5 1 8 3 4 6 2 . . 10 1 9 22 1 19 4 1 7 Power 16 | 1 2 . 1 . . 4 . . . . . . 3 . 3 1 . 1 Engine 7 | 1 1 . 1 . . 4 . . . . . . . . . . . . Core 9 | . 1 . . . . . . . . . . . 3 . 3 1 . 1 Reactor . | . . . . . . . . . . . . . . . . . . . Propulsion 40 | 2 1 . 5 2 . . . . . 5 . 6 9 . 8 1 . 1 Treads 3 | 2 1 . . . . . . . . . . . . . . . . . Leg 8 | . . . 5 2 . . . . . . . . 1 . . . . . Wheel 2 | . . . . . . . . . . 1 . . . . 1 . . . Hover 4 | . . . . . . . . . . . . . 4 . . . . . Flight 23 | . . . . . . . . . . 4 . 6 4 . 7 1 . 1 Utility 34 | 1 2 . . . 3 . 1 . . 3 1 2 8 1 5 1 1 5 Device 14 | . 1 . . . 1 . 1 . . 1 . . 3 . 3 . 1 3 Storage 3 | 1 1 . . . . . . . . . . . 1 . . . . . Processor 11 | . . . . . 1 . . . . 1 1 2 2 1 1 1 . 1 Hackware 2 | . . . . . . . . . . . . . 1 . . . . 1 Protection 4 | . . . . . 1 . . . . 1 . . 1 . 1 . . . Artifact . | . . . . . . . . . . . . . . . . . . . Weapon 19 | 2 . 1 2 1 1 2 1 . . 2 . 1 2 . 3 1 . . Energy Gun 8 | 1 . . 2 1 1 2 . . . . . . . . 1 . . . Energy Cannon 1 | . . . . . . . . . . . . . . . . 1 . . Ballistic Gun 2 | 1 . 1 . . . . . . . . . . . . . . . . Ballistic Cannon . | . . . . . . . . . . . . . . . . . . . Launcher . | . . . . . . . . . . . . . . . . . . . Special Weapon 1 | . . . . . . . 1 . . . . . . . . . . . Impact Weapon . | . . . . . . . . . . . . . . . . . . . Slashing Weapon 2 | . . . . . . . . . . . . . 1 . 1 . . . Piercing Weapon 5 | . . . . . . . . . . 2 . 1 1 . 1 . . . Special Melee Weapon . | . . . . . . . . . . . . . . . . . . . Unidentified Prototypes 3 | . . . . . 1 . . . . . . . 1 . . . . 1 Parts Lost 54 | . 1 . 3 1 1 . . . . 12 . 5 12 . . 3 2 14 Power 7 | . 1 . . . . . . . . 2 . . . . . 1 2 1 Propulsion 32 | . . . 3 1 1 . . . . 7 . 5 8 . . 1 . 6 Utility 14 | . . . . . . . . . . 3 . . 4 . . 1 . 6 Weapon 1 | . . . . . . . . . . . . . . . . . . 1 Highest Loss Streak 10 | . 1 . 2 1 1 . . . . 8 . 5 6 . . 2 2 10 To Critical Strikes . | . . . . . . . . . . . . . . . . . . . Average Backups 9 | 1 5 9 12 14 13 14 14 15 15 4 1 3 4 5 4 4 2 3 Power 2 | . . 1 2 4 3 4 2 2 2 . . . . 3 2 . . . Propulsion 1 | . . 2 . 1 1 2 3 3 3 . . . . . 1 2 . . Utility 2 | . 1 2 3 5 4 2 5 6 6 1 . 1 . . . . . . Weapon 2 | . 2 3 4 4 3 2 2 2 3 1 . 2 3 2 1 2 2 2 Tool/Special . | . . . . . . . . . . . . . . . . . . . Unused Backups 25 | . . . . 2 1 5 4 . . 5 . . 6 . . . . 2 Power 6 | . . . . 1 . 2 . . . 1 . . 1 . . . . 1 Propulsion . | . . . . . . . . . . . . . . . . . . . Utility 9 | . . . . . 1 1 2 . . 2 . . 2 . . . . 1 Weapon 9 | . . . . 1 . 2 2 . . 1 . . 3 . . . . . Tool/Special 1 | . . . . . . . . . . 1 . . . . . . . . Average Slot Usage (%) 77 | . 89 100 89 99 86 91 92 92 92 29 23 45 64 24 65 76 74 48 Engine 7 | . 9 . 2 11 9 14 15 15 15 1 . . . . . . . . Core 2 | . 4 14 8 . . . . . . . . . 2 . 6 9 8 2 Treads 3 | . 28 28 21 . . . . . . . . . . . . . . . Leg 13 | . . . 12 43 32 23 23 23 23 2 . . . . . . . . Hover 1 | . . . . . . . . . . . . . 12 . . . . . Flight 4 | . . . . . . . . . . 2 . 22 8 . 14 21 26 13 Device 9 | . 4 14 11 11 9 14 15 15 15 2 . . 5 . 7 9 9 6 Storage 5 | . 14 14 11 11 8 7 7 7 7 1 . . . . . . . . Processor 9 | . . . . . 5 7 7 7 7 4 9 16 23 19 18 17 17 19 Hackware 1 | . . . . . . . . . . . . . 1 5 5 4 4 3 Protection 3 | . . . . . 5 7 7 7 7 4 6 4 1 . 1 3 . . Energy Gun 10 | . 14 14 22 22 18 14 14 15 15 1 . . . . 1 . . . Ballistic Gun 1 | . 14 14 . . . . . . . 2 3 . . . . . . . Peak Build Rating 115 | 6 11 12 15 15 20 30 30 30 30 30 16 46 63 20 98 115 110 108 Average Rating 34 | 4 7 11 13 14 16 27 29 29 30 11 11 34 50 19 65 103 102 71 On Entrance 30 | . 6 11 12 14 15 18 30 30 30 30 11 11 28 18 20 97 101 88 Naked Turns 53 | . . . . . . . . . . 53 . . . . . . . . Heaviest Build 53 | 14 30 30 36 37 42 52 53 53 53 53 6 3 15 . 27 35 29 14 Greatest Support 61 | 40 40 40 60 40 40 39 39 39 39 39 3 36 27 3 53 61 58 19 Greatest Overweight (x) 5 | . . . 1 1 1 1 1 1 1 1 1 . 2 . 5 . . 3 Average Overweight (x) . | . . . . . . 1 1 1 1 . . . . . . . . . Largest Inventory Capacity 15 | 8 15 15 15 15 15 15 15 15 15 15 5 5 5 5 5 5 5 5 Average Capacity 11 | 7 13 15 15 15 14 15 15 15 15 6 5 5 5 5 5 5 5 5 Most Carried 15 | 2 9 12 15 15 15 15 15 15 15 15 3 4 5 5 5 5 2 5 Average Carried 9 | 1 5 9 12 14 13 14 14 14 15 4 1 3 4 5 4 4 2 3 Final Capacity 15 | 8 15 15 15 15 15 15 15 15 15 5 5 5 5 5 5 5 5 5 Final Carried 15 | 2 9 11 15 15 15 15 15 15 15 . 3 4 5 5 5 3 2 3 Class Distribution -------------------- 47% | Mutant 35% | Scavenger-Mutant 8% | Scavenger-Sprinter 6% | Scout Dominant Class ---------------- Mutant | -10/Materials Mutant | -10/Mines Scavenger-Mutant | -9/Materials Scavenger-Mutant | -9/Mines Scavenger-Mutant | -8/Materials Scavenger-Mutant | -7/Factory Mutant | -7/Lower Caves Mutant | -7/Lower Caves Mutant | -7/Data Miner Mutant | -6/Proximity Caves Mutant | -6/Factory Mutant | -6/DSF Scout | -5/Factory Mutant | -4/Factory Scavenger-Sprinter | -4/Extension Scavenger-Sprinter | -3/Research Scavenger-Sprinter | -2/Research Scavenger-Mutant | -1/Access Resources | -11 -10 -10 -9 -9 -8 -7 -7 -7 -7 -6 -6 -6 -5 -4 -4 -3 -2 -1 ----------- Run | Yrd Mat Min Mat Min Mat Fac Low Low Dat Pro Fac DSF Fac Fac Ext Res Res Acc Matter Collected 1325 | 185 191 47 90 30 40 80 40 . . 70 . . 250 67 210 25 . . Remotely 50 | . . . . . . . . . . 50 . . . . . . . . Salvage Created 1889 | . 278 92 423 154 140 80 197 . . 102 . . 96 . 250 77 . . Parts 88 | . 9 8 21 10 9 2 6 . . 2 . . 9 . 11 1 . . Haulers Intercepted 1 | . . . . . . 1 . . . . . . . . . . . . Recyclers Shooed 2 | . . . 1 . . . . . . . . . . . . . . 1 Parts Field Recycled . | . . . . . . . . . . . . . . . . . . . Retrieved Matter . | . . . . . . . . . . . . . . . . . . . Parts Self-Destructed 15 | . . . . . . . 5 . . 10 . . . . . . . . Prevented . | . . . . . . . . . . . . . . . . . . . Kills | -11 -10 -10 -9 -9 -8 -7 -7 -7 -7 -6 -6 -6 -5 -4 -4 -3 -2 -1 ------- Run | Yrd Mat Min Mat Min Mat Fac Low Low Dat Pro Fac DSF Fac Fac Ext Res Res Acc Combat Hostiles Destroyed 43 | . 5 6 9 7 3 . 3 . . 2 . . 4 . 3 1 . . Melee 8 | . . . . . . . . . . . . . 4 . 3 1 . . Guns 33 | . 5 6 7 7 3 . 3 . . 2 . . . . . . . . Classes Destroyed 9 | . 2 1 3 . . 1 2 . . . . . . . . . . . Hauler 1 | . . . . . . 1 . . . . . . . . . . . . Recycler 1 | . 1 . . . . . . . . . . . . . . . . . Watcher 2 | . . . 1 . . 1 . . . . . . . . . . . . Swarmer 14 | . . 6 . 4 . . . . . . . . 4 . . . . . Grunt 18 | . 5 . 6 3 . . 2 . . 1 . . . . . 1 . . Brawler 1 | . . . 1 . . . . . . . . . . . . . . . Duelist 2 | . . . . . . . 1 . . 1 . . . . . . . . Sentry 8 | . . . 2 . 3 . . . . . . . . . 3 . . . Tinkerer 1 | . . . . . . . 1 . . . . . . . . . . . Best Kill Streak 6 | . 2 6 3 4 2 1 3 . . 1 . . 4 . 1 1 . . Combat Bots Only 6 | . 2 6 3 4 2 . 3 . . 1 . . 4 . 1 1 . . Max Kills in Single Turn 2 | . 1 2 1 1 1 1 1 . . 1 . . 1 . 1 1 . . Gunslinging 1 | . . 1 . . . . . . . . . . . . . . . . Exploded . | . . . . . . . . . . . . . . . . . . . Melee 1 | . . . . . . . . . . . . . 1 . 1 1 . . Uniques/NPCs Destroyed . | . . . . . . . . . . . . . . . . . . . Combat | -11 -10 -10 -9 -9 -8 -7 -7 -7 -7 -6 -6 -6 -5 -4 -4 -3 -2 -1 -------- Run | Yrd Mat Min Mat Min Mat Fac Low Low Dat Pro Fac DSF Fac Fac Ext Res Res Acc Hostile Shots Fired 728 | . 44 22 53 43 18 . 20 . . 117 . 36 109 14 49 44 11 148 Missed 303 | . 13 7 16 9 4 . 7 . . 47 . 24 54 4 23 22 6 67 Hits 425 | . 31 15 37 34 14 . 13 . . 70 . 12 55 10 26 22 5 81 Melee 19 | . . . . . . . . . . 10 . 3 . . . 4 2 . Projectile 406 | . 31 15 37 34 14 . 13 . . 60 . 9 55 10 26 18 3 81 AOE 2 | . . . . . . . . . . . . 2 . . . . . . Critical Strikes 25 | . 2 . 2 2 2 . . . . 7 . 1 1 . 2 . 2 4 Damage Taken 8290 | . 397 118 493 365 209 . 196 . . 1295 . 362 1225 214 740 448 207 2021 Core 3681 | . 41 20 54 34 45 . 14 . . 533 . 188 625 214 187 82 42 1602 Absorbed by Shields 128 | . . . . . . . . . . . . . . . 122 6 . . Redirected to Shielding 134 | . . . . . . . . . . 32 . . 102 . . . . . Regen/Repaired (Parts) 52 | . . . . . 52 . . . . . . . . . . . . . Core Remaining (%) 73 | 100 . 75 . 78 91 . . . . 21 . 77 37 . 65 93 97 . Volleys Fired 118 | . 27 9 27 17 10 4 15 . . 9 . . . . . . . . Largest 2 | . 2 2 2 2 2 2 2 . . 2 . . . . . . . . Hottest 130 | . 70 70 115 130 130 130 126 . . 126 . . . . . . . . Shots Fired 229 | . 54 18 54 34 20 8 29 . . 12 . . . . . . . . Gun 228 | . 54 18 54 34 20 8 28 . . 12 . . . . . . . . Cannon . | . . . . . . . . . . . . . . . . . . . Launcher . | . . . . . . . . . . . . . . . . . . . Special 1 | . . . . . . . 1 . . . . . . . . . . . Kinetic 41 | . 27 9 . . . . . . . 5 . . . . . . . . Thermal 188 | . 27 9 54 34 20 8 29 . . 7 . . . . . . . . Explosive . | . . . . . . . . . . . . . . . . . . . Electromagnetic . | . . . . . . . . . . . . . . . . . . . Robot Hit Streak 16 | . 9 7 16 9 15 8 6 . . 5 . . . . . . . . Robot Miss Streak 4 | . 3 2 2 4 4 2 2 . . 2 . . . . . . . . Penetration Max . | . . . . . . . . . . . . . . . . . . . Secondary Targets 5 | . . 2 1 2 . . . . . . . . . . . . . . Max Gunslinging Chain 1 | . . 1 1 1 . . . . . . . . . . . . . . Shots Hit Robots 194 | . 35 12 41 24 18 8 21 . . 10 . . 7 . 11 2 1 4 Core Hits 94 | . 12 6 19 15 14 4 9 . . 5 . . 4 . 5 1 . . Critical Kills . | . . . . . . . . . . . . . . . . . . . Critical Parts Destroyed . | . . . . . . . . . . . . . . . . . . . Critical Strikes 8 | . . 1 1 1 . 1 1 . . 1 . . . . 1 1 . . Burn 6 | . . 1 1 1 . 1 1 . . 1 . . . . . . . . Sever 2 | . . . . . . . . . . . . . . . 1 1 . . Melee Attacks 51 | . . . . . . . . . . 6 . . 10 . 20 2 1 12 Impact . | . . . . . . . . . . . . . . . . . . . Slashing 36 | . . . . . . . . . . . . . 1 . 20 2 1 12 Piercing 15 | . . . . . . . . . . 6 . . 9 . . . . . Sneak Attacks 1 | . . . . . . . . . . . . . . . . . . 1 Combat Hostiles . | . . . . . . . . . . . . . . . . . . . Follow-up Attacks . | . . . . . . . . . . . . . . . . . . . Damage Inflicted 3547 | . 476 156 575 339 263 127 359 . . 173 . . 264 . 446 99 25 245 Guns 2409 | . 476 156 570 339 263 127 359 . . 119 . . . . . . . . Cannons . | . . . . . . . . . . . . . . . . . . . Explosions . | . . . . . . . . . . . . . . . . . . . Melee 1127 | . . . . . . . . . . 54 . . 264 . 446 99 25 239 Ramming 11 | . . . 5 . . . . . . . . . . . . . . 6 Kinetic 352 | . 249 69 . . . . . . . 34 . . . . . . . . Thermal 2057 | . 227 87 570 339 263 127 359 . . 85 . . . . . . . . Explosive . | . . . . . . . . . . . . . . . . . . . Electromagnetic . | . . . . . . . . . . . . . . . . . . . Impact . | . . . . . . . . . . . . . . . . . . . Slashing 865 | . . . . . . . . . . . . . 56 . 446 99 25 239 Piercing 262 | . . . . . . . . . . 54 . . 208 . . . . . Highest Corruption 6 | . . . . . . . . . . 2 . . 5 . . . . 6 Average Corruption 2 | . . . . . . . . . . 2 . . 2 . . . . 5 Corruption Purged . | . . . . . . . . . . . . . . . . . . . Corruption Blocked . | . . . . . . . . . . . . . . . . . . . Effects 12 | . . . . . . . . . . 3 . . 7 . . . . 2 Message Errors 4 | . . . . . . . . . . 3 . . . . . . . 1 Matter Fused 2 | . . . . . . . . . . . . . 2 . . . . . Heat Flow Errors 2 | . . . . . . . . . . . . . 1 . . . . 1 Energy Discharges 2 | . . . . . . . . . . . . . 2 . . . . . Parts Rejected 1 | . . . . . . . . . . . . . 1 . . . . . Parts Fused 1 | . . . . . . . . . . . . . 1 . . . . . Overload Shots . | . . . . . . . . . . . . . . . . . . . Overflow Damage 57 | . . . . . . . . . . 3 . . 6 . 12 . . 36 Projectiles . | . . . . . . . . . . . . . . . . . . . Explosions . | . . . . . . . . . . . . . . . . . . . Melee 57 | . . . . . . . . . . 3 . . 6 . 12 . . 36 Knockbacks . | . . . . . . . . . . . . . . . . . . . Impact . | . . . . . . . . . . . . . . . . . . . Kinetic . | . . . . . . . . . . . . . . . . . . . Secondary . | . . . . . . . . . . . . . . . . . . . Self-Inflicted Damage 3 | . . . . . . . . . . . . . . . . . . 3 Shots . | . . . . . . . . . . . . . . . . . . . Rammed 5 | . . . . . . . . . . . . . . 2 . . . 3 Targets Rammed 6 | . . . 1 . . . . . . . . . . 2 . . . 3 Kicked 1 | . . . 1 . . . . . . . . . . . . . . . Crushed . | . . . . . . . . . . . . . . . . . . . Highest Temperature 270 | . 199 . 72 264 270 126 249 . . 93 . . 193 . . . . 86 Average Temperature 74 | . 82 . 24 88 106 55 107 . . 40 . . 84 . . . . 60 Received Heat Transfer 1595 | . 261 . 249 189 99 . 117 . . 397 . 18 93 21 76 75 . . Effects 1 | . . . . . . . 1 . . . . . . . . . . . Energy Bleed 1 | . . . . . . . 1 . . . . . . . . . . . Siege Activations . | . . . . . . . . . . . . . . . . . . . Martial Activations . | . . . . . . . . . . . . . . . . . . . Shielding Activations . | . . . . . . . . . . . . . . . . . . . Robots Disrupted . | . . . . . . . . . . . . . . . . . . . Combat Hostiles . | . . . . . . . . . . . . . . . . . . . Robots Corrupted . | . . . . . . . . . . . . . . . . . . . Combat Hostiles . | . . . . . . . . . . . . . . . . . . . Parts Fried 2 | . . . . . . . . . . . . . . . 2 . . . Impact Corruptions . | . . . . . . . . . . . . . . . . . . . Robots Melted 3 | . . . 2 . . 1 . . . . . . . . . . . . Combat Hostiles 2 | . . . 2 . . . . . . . . . . . . . . . Parts Melted 20 | . 2 2 5 3 2 1 3 . . 2 . . . . . . . . Heat Transferred 5316 | . 666 333 1665 764 476 302 851 . . 259 . . . . . . . . Parts Sabotaged . | . . . . . . . . . . . . . . . . . . . Parts Stolen . | . . . . . . . . . . . . . . . . . . . Parts Stripped . | . . . . . . . . . . . . . . . . . . . Power Chain Reactions . | . . . . . . . . . . . . . . . . . . . Alert | -11 -10 -10 -9 -9 -8 -7 -7 -7 -7 -6 -6 -6 -5 -4 -4 -3 -2 -1 ------- Run | Yrd Mat Min Mat Min Mat Fac Low Low Dat Pro Fac DSF Fac Fac Ext Res Res Acc Maximum Alert Level 1 | . . . . . . . . . . . . . . . 1 1 . . Low Security (%) 97 | 100 100 100 100 100 100 100 . . . . 100 100 100 100 69 98 100 100 Level 1 2 | . . . . . . . . . . . . . . . 30 1 . . Level 2 . | . . . . . . . . . . . . . . . . . . . Level 3 . | . . . . . . . . . . . . . . . . . . . Level 4 . | . . . . . . . . . . . . . . . . . . . Level 5 . | . . . . . . . . . . . . . . . . . . . High Security . | . . . . . . . . . . . . . . . . . . . Max Security . | . . . . . . . . . . . . . . . . . . . Peak Influence 310 | . 91 142 133 119 60 7 . . . . 144 100 50 28 310 217 121 165 Initial 157 | . . 12 47 39 38 . . . . . 142 100 25 2 . 157 121 54 Average 50 | . 33 115 76 99 19 . . . . . 142 86 9 8 128 151 117 42 Influence Increases 2405 | . 151 140 246 160 90 21 70 . . 377 12 . 165 28 465 210 . 270 Destroy 0b10 Robot/C 1140 | . 100 120 180 140 60 . 60 . . 120 . . 80 . 260 20 . . Destroy 0b10 Robot/NC 20 | . 5 . 5 . . 10 . . . . . . . . . . . . Destroy Leader 226 | . 30 20 52 20 30 4 10 . . 10 . . 10 . 40 . . . Allied During Kill 93 | . . . . . . . . . . 22 . . . . 70 1 . . Successful Hack 87 | . . . 8 . . 7 . . . . 12 . . 28 8 24 . . Disable Machine 45 | . 15 . . . . . . . . . . . . . 15 . . 15 Destroy Structure 14 | . 1 . 1 . . . . . . . . . . . 12 . . . Partial Spotted 45 | . . . . . . . . . . . . . . . 45 . . . Lose Combat Pursuer 735 | . . . . . . . . . . 225 . . 75 . 15 165 . 255 Influence Decreases 2245 | . 120 49 265 164 189 21 22 48 . 150 95 94 208 35 165 293 126 201 Entered New Map 664 | . . 19 75 64 61 . . 10 . . 85 44 25 5 . 143 96 37 Time Decay 1146 | . 110 30 160 90 118 21 22 38 . 70 10 . 93 30 145 80 10 119 Lost Part 355 | . 10 . 30 10 10 . . . . 60 . 50 90 . . 30 20 45 Lost Ally 80 | . . . . . . . . . . 20 . . . . 20 40 . . Squads Dispatched 22 | . 1 . 1 . . 1 . . . 1 . 1 3 2 1 3 3 5 Investigation 5 | . . . . . . . . . . . . . 2 2 . 1 . . Extermination 3 | . . . . . . . . . . . . . 1 . . . . 2 Reinforcement 13 | . 1 . 1 . . 1 . . . . . 1 . . 1 2 3 3 Assault 1 | . . . . . . . . . . 1 . . . . . . . . Garrison . | . . . . . . . . . . . . . . . . . . . Intercept . | . . . . . . . . . . . . . . . . . . . Searches Triggered . | . . . . . . . . . . . . . . . . . . . Data Miner Redirects 3 | . . . . . . . . . . . . . 1 1 . 1 . . Construction Impeded 1 | . . . . . . . . . . . . . . . . . . 1 Haulers Reinforced 1 | . . . . . . . . . . . . . . . . 1 . . Active Scanning Responses . | . . . . . . . . . . . . . . . . . . . Cargo Convoy Interrupts . | . . . . . . . . . . . . . . . . . . . Stealth | -11 -10 -10 -9 -9 -8 -7 -7 -7 -7 -6 -6 -6 -5 -4 -4 -3 -2 -1 --------- Run | Yrd Mat Min Mat Min Mat Fac Low Low Dat Pro Fac DSF Fac Fac Ext Res Res Acc Distress Signals 7 | . 1 . 1 . . . . . . . . . . . 2 3 . . Communications Jammed . | . . . . . . . . . . . . . . . . . . . Distress Signals . | . . . . . . . . . . . . . . . . . . . Times Spotted 186 | . 12 6 21 7 5 2 3 . . 24 . 6 14 5 21 25 9 26 Peak Tracking Total 19 | . 4 6 8 4 5 1 3 . . 10 . 6 5 4 6 19 8 16 Tactical Retreats 17 | . . . . . . . . . . 6 . . 3 . 1 2 . 5 Traps | -11 -10 -10 -9 -9 -8 -7 -7 -7 -7 -6 -6 -6 -5 -4 -4 -3 -2 -1 ------- Run | Yrd Mat Min Mat Min Mat Fac Low Low Dat Pro Fac DSF Fac Fac Ext Res Res Acc Traps Triggered 3 | . . . . . . . . . . . . . 1 . . 1 . 1 Indirectly . | . . . . . . . . . . . . . . . . . . . Trap Hack Attempts . | . . . . . . . . . . . . . . . . . . . Triggered . | . . . . . . . . . . . . . . . . . . . Disarmed . | . . . . . . . . . . . . . . . . . . . Reprogrammed . | . . . . . . . . . . . . . . . . . . . Reused . | . . . . . . . . . . . . . . . . . . . Traps Extracted . | . . . . . . . . . . . . . . . . . . . Installed . | . . . . . . . . . . . . . . . . . . . Triggered . | . . . . . . . . . . . . . . . . . . . Machines | -11 -10 -10 -9 -9 -8 -7 -7 -7 -7 -6 -6 -6 -5 -4 -4 -3 -2 -1 ---------- Run | Yrd Mat Min Mat Min Mat Fac Low Low Dat Pro Fac DSF Fac Fac Ext Res Res Acc Machines Disabled 4 | . 1 . . . . . 1 . . . . . . . 1 . . 1 Max in Single Turn 1 | . 1 . . . . . 1 . . . . . . . 1 . . 1 Machines Repaired . | . . . . . . . . . . . . . . . . . . . Machines Dismantled 1 | . . . . . . . 1 . . . . . . . . . . . Machines Sabotaged . | . . . . . . . . . . . . . . . . . . . Overloaded Fab Kills . | . . . . . . . . . . . . . . . . . . . Hacking | -11 -10 -10 -9 -9 -8 -7 -7 -7 -7 -6 -6 -6 -5 -4 -4 -3 -2 -1 --------- Run | Yrd Mat Min Mat Min Mat Fac Low Low Dat Pro Fac DSF Fac Fac Ext Res Res Acc Machines Accessed 24 | . 1 . 1 . 1 1 . . 4 . 2 . 3 4 1 3 . 3 Terminals 14 | . 1 . 1 . . 1 . . . . 1 . 3 2 1 2 . 2 Fabricators 2 | . . . . . . . . . . . . . . 1 . 1 . . Repair Stations 2 | . . . . . 1 . . . . . . . . . . . . 1 Recycling Units 1 | . . . . . . . . . . . . . . 1 . . . . Scanalyzers 1 | . . . . . . . . . . . 1 . . . . . . . Garrison Access . | . . . . . . . . . . . . . . . . . . . Total Hacks 78 | . 1 . 6 . 4 1 . . 32 . 5 . 6 9 4 5 . 5 Successful 53 | . . . 3 . 2 1 . . 32 . 3 . 2 6 1 3 . . Failed 25 | . 1 . 3 . 2 . . . . . 2 . 4 3 3 2 . 5 Catastrophic 7 | . 1 . 2 . . . . . . . . . 1 . 1 1 . 1 Database Lockouts . | . . . . . . . . . . . . . . . . . . . Manual 18 | . 1 . 4 . . . . . . . 1 . 3 . 4 2 . 3 Terminals 31 | . 1 . 6 . . 1 . . . . 3 . 6 4 4 3 . 3 Fabricators 5 | . . . . . . . . . . . . . . 3 . 2 . . Repair Stations 6 | . . . . . 4 . . . . . . . . . . . . 2 Recycling Units 2 | . . . . . . . . . . . . . . 2 . . . . Scanalyzers 2 | . . . . . . . . . . . 2 . . . . . . . Garrison Access . | . . . . . . . . . . . . . . . . . . . Terminal Hacks 43 | . . . 3 . . 1 . . 32 . 1 . 1 3 1 1 . . Record 14 | . . . . . . . . . 11 . . . . 3 . . . . Part Schematic 12 | . . . . . . . . . 12 . . . . . . . . . Robot Schematic 6 | . . . . . . . . . 6 . . . . . . . . . Prototype ID Bank 3 | . . . . . . . . . 3 . . . . . . . . . Open DSF 3 | . . . . . . . . . . . 1 . 1 . . 1 . . Level Access Points 1 | . . . . . . . . . . . . . . . 1 . . . Branch Access Points 1 | . . . . . . 1 . . . . . . . . . . . . Maintenance Status 1 | . . . 1 . . . . . . . . . . . . . . . Security Status 1 | . . . 1 . . . . . . . . . . . . . . . Zone Layout 1 | . . . 1 . . . . . . . . . . . . . . . Fabricator Hacks 4 | . . . . . . . . . . . . . . 2 . 2 . . Load Schematic 2 | . . . . . . . . . . . . . . 1 . 1 . . Build 2 | . . . . . . . . . . . . . . 1 . 1 . . Repair Station Hacks 2 | . . . . . 2 . . . . . . . . . . . . . Scan Component 1 | . . . . . 1 . . . . . . . . . . . . . Repair 1 | . . . . . 1 . . . . . . . . . . . . . Recycling Unit Hacks 1 | . . . . . . . . . . . . . . 1 . . . . Retrieve Components 1 | . . . . . . . . . . . . . . 1 . . . . Scanalyzer 2 | . . . . . . . . . . . 2 . . . . . . . Insert Component 1 | . . . . . . . . . . . 1 . . . . . . . Analyze 1 | . . . . . . . . . . . 1 . . . . . . . Garrison Access Hacks . | . . . . . . . . . . . . . . . . . . . Unauthorized Hacks 1 | . . . . . . . . . . . . . 1 . . . . . Terminals 1 | . . . . . . . . . . . . . 1 . . . . . Sabotage 1 | . . . . . . . . . . . . . 1 . . . . . Fabricators . | . . . . . . . . . . . . . . . . . . . Repair Stations . | . . . . . . . . . . . . . . . . . . . Recycling Units . | . . . . . . . . . . . . . . . . . . . Scanalyzers . | . . . . . . . . . . . . . . . . . . . Garrison Access . | . . . . . . . . . . . . . . . . . . . Data Cores Recovered . | . . . . . . . . . . . . . . . . . . . Used . | . . . . . . . . . . . . . . . . . . . Hacking Detections 16 | . 1 . 1 . 1 . . . . . 2 . 1 4 1 2 . 3 Full Trace Events 4 | . . . . . . . . . . . . . 1 2 . 1 . . Feedback Events . | . . . . . . . . . . . . . . . . . . . Feedback Blocked . | . . . . . . . . . . . . . . . . . . . Robot Schematics Acquired 6 | . . . . . . . . . 6 . . . . . . . . . Robots Built 2 | . . . . . . . . . . . . . . . . 2 . . Authchips . | . . . . . . . . . . . . . . . . . . . Time 154 | . . . . . . . . . . . . . . 116 . 38 . . Total Robot Build Rating 6 | . . . . . . . . . . . . . . . . 6 . . Part Schematics Acquired 13 | . . . . . . . . . 12 . 1 . . . . . . . Parts Built . | . . . . . . . . . . . . . . . . . . . Authchips . | . . . . . . . . . . . . . . . . . . . Time . | . . . . . . . . . . . . . . . . . . . Total Part Build Rating . | . . . . . . . . . . . . . . . . . . . Parts Repaired 1 | . . . . . 1 . . . . . . . . . . . . . Time 26 | . . . . . 26 . . . . . . . . . . . . . Parts Recycled . | . . . . . . . . . . . . . . . . . . . Recycled Matter . | . . . . . . . . . . . . . . . . . . . Retrieved Matter . | . . . . . . . . . . . . . . . . . . . Retrieved Components . | . . . . . . . . . . . . . . . . . . . Parts Scanalyzed 1 | . . . . . . . . . . . 1 . . . . . . . Part Schematics Acquired 1 | . . . . . . . . . . . 1 . . . . . . . Parts Damaged . | . . . . . . . . . . . . . . . . . . . Bothacking | -11 -10 -10 -9 -9 -8 -7 -7 -7 -7 -6 -6 -6 -5 -4 -4 -3 -2 -1 ------------ Run | Yrd Mat Min Mat Min Mat Fac Low Low Dat Pro Fac DSF Fac Fac Ext Res Res Acc Used RIF Installer . | . . . . . . . . . . . . . . . . . . . Robots Hacked . | . . . . . . . . . . . . . . . . . . . Non-combat . | . . . . . . . . . . . . . . . . . . . Combat . | . . . . . . . . . . . . . . . . . . . Robot Hacks Applied . | . . . . . . . . . . . . . . . . . . . Relay Couplers Released . | . . . . . . . . . . . . . . . . . . . Fabnet Peak Effective % . | . . . . . . . . . . . . . . . . . . . Robots Rewired . | . . . . . . . . . . . . . . . . . . . Allies Hacked . | . . . . . . . . . . . . . . . . . . . Hacks Repelled . | . . . . . . . . . . . . . . . . . . . Allies | -11 -10 -10 -9 -9 -8 -7 -7 -7 -7 -6 -6 -6 -5 -4 -4 -3 -2 -1 -------- Run | Yrd Mat Min Mat Min Mat Fac Low Low Dat Pro Fac DSF Fac Fac Ext Res Res Acc Total Allies 7 | . . . . . . . . . . 1 . . . . 4 2 . . Largest Group 3 | . . . . . . . . . . 1 . . . . 3 2 . . Highest-Rated Group 226 | . . . . . . . . . . 96 . . . . 226 153 . . Highest-Rated Ally 159 | . . . . . . . . . . 96 . . . . 159 153 . . Total Orders 3 | . . . . . . . . . . . . . . . . 2 . 1 AID 2 | . . . . . . . . . . . . . . . . 2 . . EXPLORE 1 | . . . . . . . . . . . . . . . . . . 1 Ally Attacks 56 | . . . . . . . . . . 12 . . . . 39 5 . . Total Damage 2027 | . . . . . . . . . . 279 . . . . 1580 168 . . Kills 14 | . . . . . . . . . . 4 . . . . 10 . . . Allies Corrupted . | . . . . . . . . . . . . . . . . . . . Allies Melted . | . . . . . . . . . . . . . . . . . . . Intel | -11 -10 -10 -9 -9 -8 -7 -7 -7 -7 -6 -6 -6 -5 -4 -4 -3 -2 -1 ------- Run | Yrd Mat Min Mat Min Mat Fac Low Low Dat Pro Fac DSF Fac Fac Ext Res Res Acc Active Infowar (turns) 1586 | . . . . . . . . . . 106 25 56 428 115 304 169 21 362 Optics 760 | . . . . . . . . . . . . 33 428 115 184 . . . Sensors 395 | . . . . . . . . . . . . . 391 . . . . 4 Structural 671 | . . . . . . . . . . . . . . . 234 169 21 247 Machine Analysis 1586 | . . . . . . . . . . 106 25 56 428 115 304 169 21 362 Robot Analysis Total . | . . . . . . . . . . . . . . . . . . . Derelict Logs Recovered 5 | . . . . . . . 2 1 . 2 . . . . . . . . Drone Launches 2 | . . . . . . . . . . . . . . . . . . 2 Drone Recoveries . | . . . . . . . . . . . . . . . . . . . Exploration | -11 -10 -10 -9 -9 -8 -7 -7 -7 -7 -6 -6 -6 -5 -4 -4 -3 -2 -1 ------------- Run | Yrd Mat Min Mat Min Mat Fac Low Low Dat Pro Fac DSF Fac Fac Ext Res Res Acc Turns Passed 4717 | 76 328 68 321 181 327 480 819 287 154 196 25 56 428 115 304 169 21 362 Spaces Moved 3843 | 43 141 23 131 96 158 234 389 151 82 279 37 87 553 197 295 346 70 531 Core 654 | 2 . . . . . . . . . 135 37 5 46 197 66 . . 166 Treads 307 | 41 141 23 102 . . . . . . . . . . . . . . . Legs 1141 | . . . 29 96 158 234 389 151 82 2 . . . . . . . . Wheels 50 | . . . . . . . . . . 21 . . . . 29 . . . Hover 6 | . . . . . . . . . . . . . 6 . . . . . Flight 1685 | . . . . . . . . . . 121 . 82 501 . 200 346 70 365 Fastest Speed 21 | 50 160 160 120 120 120 190 190 190 190 35 50 25 26 50 21 26 23 32 Average Speed 90 | 154 160 160 156 122 153 190 190 190 190 50 58 37 37 50 40 29 23 43 Slowest Speed 440 | 160 160 160 240 190 190 190 190 190 190 190 100 50 195 50 440 35 27 200 Overloaded Moves . | . . . . . . . . . . . . . . . . . . . Propulsion Burnouts . | . . . . . . . . . . . . . . . . . . . Robots Hopped 9 | . . . . . . . . . . . . 2 3 . . . 1 3 Potential Cave-ins . | . . . . . . . . . . . . . . . . . . . Cave-ins Triggered 1 | . . . . . . . . . . . . . . . 1 . . . Exploration Rate (%) 28 | 4 38 5 22 28 21 8 51 34 72 56 1 91 20 8 42 13 3 20 Regions Visited 18 Branch Regions 7 Pre-discovered Areas 1 | . . . . . . . . . 1 . . . . . . . . . Known Exits Taken 8 | . . . . . . 1 . . . 1 1 . 1 1 1 1 1 . Unknown Exits Taken 9 | 1 1 1 1 1 1 . 1 1 1 . . . . . . . . . Scrap Searched 5 | . . . . 1 . . 2 1 . 1 . . . . . . . . Spaces Dug . | . . . . . . . . . . . . . . . . . . . Terrain Destroyed . | . . . . . . . . . . . . . . . . . . . Melee . | . . . . . . . . . . . . . . . . . . . Projectile . | . . . . . . . . . . . . . . . . . . . AOE . | . . . . . . . . . . . . . . . . . . . Terrain Rammed . | . . . . . . . . . . . . . . . . . . . Walls Destroyed . | . . . . . . . . . . . . . . . . . . . Machines Disabled . | . . . . . . . . . . . . . . . . . . . Actions | -11 -10 -10 -9 -9 -8 -7 -7 -7 -7 -6 -6 -6 -5 -4 -4 -3 -2 -1 --------- Run | Yrd Mat Min Mat Min Mat Fac Low Low Dat Pro Fac DSF Fac Fac Ext Res Res Acc Total 4732 | 50 189 37 191 127 223 267 424 152 81 316 40 103 752 212 447 410 71 640 Wait 454 | . 10 . 17 4 33 1 2 . . 8 . 8 139 13 96 50 . 73 Move 3808 | 42 140 22 131 95 157 233 388 150 81 278 36 82 546 196 294 345 67 525 Hop 9 | . . . . . . . . . . . . 2 3 . . . 1 3 Pick Up 65 | 2 5 3 4 3 13 9 4 1 . 1 1 2 12 . 3 . . 2 Fast Attach 77 | 6 3 . 3 1 3 3 . . . 3 1 8 17 1 16 3 1 8 Attach 35 | . 1 1 3 . 2 4 . . . 9 . 1 2 . 3 3 1 5 Detach 28 | . 2 1 1 . 1 3 . . . . 2 . 4 . 6 3 . 5 Swap 17 | . 1 . 4 2 1 . 3 . . . . . 4 . 2 . . . Drop 55 | . . 1 1 5 3 10 4 1 . 2 . . 15 . 7 2 . 4 Fire 118 | . 27 9 27 17 10 4 15 . . 9 . . . . . . . . Melee 51 | . . . . . . . . . . 6 . . 10 . 20 2 1 12 Ram 5 | . . . . . . . . . . . . . . 2 . . . 3 Kick . | . . . . . . . . . . . . . . . . . . . Crush . | . . . . . . . . . . . . . . . . . . . Escape Stasis 2 | . . . . . . . . . . . . . . . . 2 . . Rewire . | . . . . . . . . . . . . . . . . . . . Trap . | . . . . . . . . . . . . . . . . . . . Miscellaneous 8 | . . . . . . . 8 . . . . . . . . . . . Route ------- -11/Scrapyard -10/Materials -10/Mines -9/Materials -9/Mines -8/Materials -7/Factory (discovered 2 exits: *Low x2) -7/Lower Caves -7/Lower Caves -7/Data Miner -6/Proximity Caves -6/Factory (discovered 3 exits: Low x2 / DSF) -6/DSF -5/Factory -4/Factory -4/Extension (discovered 2 exits: *Res x2) -3/Research -2/Research -1/Access History --------- Turn | Location | Event 2 | -11/Scrapyard | Met Revision 17 6 | -11/Scrapyard | Discovered new exit (range 15) 77 | -11/Scrapyard | Entered Materials 323 | -10/Materials | Discovered new exit (range 10) 325 | -10/Materials | Build established: Mutant 405 | -10/Materials | Entered Mines 463 | -10/Mines | Discovered new exit (range 6) 473 | -10/Mines | Entered Materials 473 | -9/Materials | Evolved 2 slots: Propulsion x2 786 | -9/Materials | Discovered new exit (range 8) 794 | -9/Materials | Entered Mines 873 | -9/Mines | Received a Rocket Launcher from a helpful Derelict 898 | -9/Mines | Build established: Scavenger-Mutant 899 | -9/Mines | Discovered new exit (range 12) 975 | -9/Mines | Entered Materials 975 | -8/Materials | Evolved 2 slots: Utility x2 1011 | -8/Materials | Repaired Lrg. Storage Unit 1267 | -8/Materials | Discovered new exit (range 11) 1302 | -8/Materials | Entered Factory 1302 | -7/Factory | Evolved 2 slots: Power x1, Utility x1 1531 | -7/Factory | Identified exit to Lower Caves 1782 | -7/Factory | Entered Lower Caves 2038 | -7/Lower Caves | Learned Factory emergency access door positions 2341 | -7/Lower Caves | Build established: Mutant 2411 | -7/Lower Caves | Encountered a Warlord checkpoint 2416 | -7/Lower Caves | Learned location of 1 exit from Factory 2530 | -7/Lower Caves | Discovered new exit (range 10) 2601 | -7/Lower Caves | Entered another Lower Caves area 2611 | -7/Lower Caves | Learned location of 1 exit from Factory 2861 | -7/Lower Caves | Discovered new exit (range 9) 2888 | -7/Lower Caves | Entered Data Miner 2888 | -7/Data Miner | Discovered new exit (range 6) 2925 | -7/Data Miner | Met Data Miner 2966 | -7/Data Miner | Learned location of Section 7 (-2) 2966 | -7/Data Miner | Acquired the access code to Warlord's prototype stash 2999 | -7/Data Miner | Received God Mode back door access code from Data Miner 3042 | -7/Data Miner | Entered Proximity Caves 3044 | -6/Proximity Caves | Attracted the attention of an 0b10 outpost 3062 | -6/Proximity Caves | Released all parts (3) 3078 | -6/Proximity Caves | Learned Factory emergency access door positions 3082 | -6/Proximity Caves | Identified exit to Factory 3093 | -6/Proximity Caves | Lost 8 parts (1p5n2u) 3120 | -6/Proximity Caves | Core integrity fell below 50% 3162 | -6/Proximity Caves | Attracted the attention of an 0b10 checkpoint 3175 | -6/Proximity Caves | Escorted by Enhanced Grunt 3219 | -6/Proximity Caves | Lost 3 parts (1p1n1u) 3238 | -6/Proximity Caves | Entered Factory 3238 | -6/Factory | Evolved 2 slots: Propulsion x2 3239 | -6/Factory | Identified exit to Lower Caves 3263 | -6/Factory | Identified exit to DSF 3263 | -6/Factory | Entered DSF 3290 | -6/DSF | Additional patrols routed to DSF 3312 | -6/DSF | Discovered new exit (range 14) 3319 | -6/DSF | Identified exit to Factory 3319 | -6/DSF | Entered Factory 3319 | -5/Factory | Evolved 2 slots: Utility x2 3350 | -5/Factory | Lost 5 parts (5n) 3540 | -5/Factory | Build established: Scout 3606 | -5/Factory | Lost 3 parts (2n1u) 3657 | -5/Factory | Incoming investigation squad redirected 3680 | -5/Factory | Lost 3 parts (2n1u) 3690 | -5/Factory | Spotted B-75 Beast 3726 | -5/Factory | Core integrity fell below 50% 3735 | -5/Factory | Discovered new exit (range 20) 3746 | -5/Factory | Identified exit to Factory 3747 | -5/Factory | Entered another Factory area 3747 | -4/Factory | Evolved 2 slots: Propulsion x2 3756 | -4/Factory | Lost 6 parts (4n2u) 3831 | -4/Factory | Discovered new exit (range 12) 3849 | -4/Factory | Incoming investigation squad redirected 3861 | -4/Factory | Identified exit to Extension 3862 | -4/Factory | Entered Extension 3870 | -4/Extension | Disrupted transfer network 3883 | -4/Extension | Build established: Mutant 3927 | -4/Extension | Rescued A7 3962 | -4/Extension | Crushed by falling debris 3990 | -4/Extension | Rescued a captive Derelict 3991 | -4/Extension | Rescued a captive Derelict 4101 | -4/Extension | Identified exit to Research 4110 | -4/Extension | Rescued a captive Derelict 4151 | -4/Extension | Spotted B-86 Titan 4154 | -4/Extension | Spotted B-86 Titan 4166 | -4/Extension | Entered Research 4166 | -3/Research | Accompanied by 1 ally (A7) 4166 | -3/Research | Evolved 2 slots: Power x1, Utility x1 4184 | -3/Research | Incoming investigation squad redirected 4207 | -3/Research | Fabricated H-55 Commando (x2) 4287 | -3/Research | Build established: Scavenger-Sprinter 4318 | -3/Research | Discovered new exit (range 14) 4335 | -3/Research | Identified exit to Research 4335 | -3/Research | Entered another Research area 4335 | -2/Research | Evolved 2 slots: Propulsion x2 4352 | -2/Research | Discovered new exit (range 5) 4353 | -2/Research | Identified exit to Access 4356 | -2/Research | Entered Access 4356 | -1/Access | Evolved 2 slots: Power x1, Utility x1 4471 | -1/Access | Found Prototype Processor 4471 | -1/Access | Identified Exp. Core Analyzer 4614 | -1/Access | Spotted B-99 Colossus 4633 | -1/Access | Core integrity fell below 50% 4660 | -1/Access | Lost 10 parts (1p6n2u1w) 4685 | -1/Access | Core integrity fell below 20% 4718 | -1/Access | Destroyed by S-43 Plague with Heavy Machine Gun Last Messages --------------- System corrupted: Heat flow error (+138). U-05 Engineer destroyed. Knocked back. P-80 Master resets S-43 Plague, system corruption cleaned. Adv. Melee Analysis Suite destroyed. Hacking Suite destroyed. Knocked back. Slammed into K-01 Serf. Slammed into U-05 Engineer. ALERT: Construction progress impeded, dispatching reinforcements to local area. Slammed into U-05 Engineer. ALERT: Potential suspicious activity detected, Programmers report to Access Zone 1M. TF Node disabled. Adv. Sensor Array tumbles out of TF Node. Adv. Signal Interpreter tumbles out of TF Node. Acquired Phase Shifter. Acquired Adv. Sensor Array. Phase Shifter destroyed. Map ----- +----------------------------------------------------+ | ?????????????????????????????????????????????????? | | ?????????????????????????????????????????????????? | | ?????????????????????????????????????????????????? | | ?????????????????????????????????????????????????? | | ?????????????????????????????????????????????????? | | ?????????????????????????????????????????????????? | | ????????????????????????????????? ??????????????? | | ????????????????????????????????# ??????????????? | | ????????????????????????????????# ??????????????? | | ????????????????????????????????# +?????????????? | | ????????????????????????????????# #?????????????? | | ????????????????????????????????# #?????????????? | | ????????????????????????????????# #?????????????? | | ????????????????????????????????# #?????????????? | | ????????????????????????????????# #????#+######## | | ????????????????????????????????# #????# # | | ????????????????????????????????# #????# # | | ????????????????????????????????# ###### # | | ????????????????????????????????# # | | ?????????????????????#######????# # | | ?????????????????????# s###### ##+##### | | ?????????????????????# s s p p | | ?????????????????????# !ss | | ?????????????????????# | | ?????????????????????# ########/############## | | ?????????????????????## @##???????k?????????????? | | ??????????????????????# #??????????????????????? | | ??????????????????????# #??????????????????????? | | ??????????????????????# #??????????????????????? | | ??????????????????????# ??????????????????????? | | ??????????????????????# #??????????????????????? | | ??????????????????????# #??????????????????????? | | ??????????????????????##+##??????????????????????? | | ?????????????????????????????????????????????????? | | ?????????????????????????????????????????????????? | | ?????????????????????????????????????????????????? | | ?????????????????????????????????????????????????? | | ???????????????????????????""????????????????????? | | ???????????????????????????""????????????????????? | | ???????????????????????????S"????????????????????? | | ??????????????????????????"""????????????????????? | | ??????????????????????????"""????????????????????? | | ??????????????????????????"""????????????????????? | | ?????????????????????????????????????????????????? | | ?????????????????????????????????????????????????? | | ?????????????????????????????????????????????????? | | ?????????????????????????????????????????????????? | | ?????????????????????????????????????????????????? | | ?????????????????????????????????????????????????? | | ?????????????????????????????????????????????????? | +----------------------------------------------------+ Best States ------------- Heat Dissipation 90 Energy Generation 27 Energy Capacity 480 Matter Stores 300 Matter Capacity 300 Sight Range 22 Robot Scan Range 15 Terrain Scan Density 10 Additional Mass Support 9 Base Temperature (-) 200 Armor Coverage 225 Propulsion Shielding 66 Utility Shielding 66 Evasion (%) 74 Targeting Accuracy 6 Melee Accuracy 16 Core Analysis 6 Recoil Reduction 3 Offensive Hacking 10 Defensive Hacking 10 Item Schematics ----------------- Combat Drone Bay | -7/Data Miner | Free Lgt. Regenerative Plating | -7/Data Miner | Free Multireflex Exoskeleton | -7/Data Miner | Free Exp. Power Shielding | -7/Data Miner | Free Ion Burst Cannon | -7/Data Miner | Free Hvy. Treads | -7/Data Miner | Free Lyr. Heavy Armor Plating | -7/Data Miner | Free Imp. Remote Datajack | -7/Data Miner | Free Hpw. Shock Rifle | -7/Data Miner | Free Neutrino Core | -7/Data Miner | Free Imp. Armor Integrity Analyzer | -7/Data Miner | Free Imp. Point Defense System | -7/Data Miner | Free Mak. Spear | -6/Factory | Scanalyzed Robot Schematics ------------------ R-10 Processor | -7/Data Miner | Free H-55 Commando | -7/Data Miner | Free G-47 Trooper | -7/Data Miner | Free M-22 Extractor | -7/Data Miner | Free L-41 Fighter | -7/Data Miner | Free B-48 Gladiator | -7/Data Miner | Free Fabricated ------------ H-55 Commando | x2 | -3/Research Repaired ---------- Lrg. Storage Unit | 85% | -8/Materials Alien Tech Used ----------------- None Achievements -------------- Brute Force Can't Catch Me My Command Is Your Wish Origins Prison Break Challenges ------------ None Game ------ Seed ShrapnelCargoFemtoactuators Manual? 0 Play Time 01:45:54 Cumulative 72.1 hours Start 2025.07.13 @ 17:45:48 End 2025.07.13 @ 19:43:21 Sessions 1 Manual Loads 0 Difficulty Rogue Special Mode None Game No. 61 Rogue 58 Adventurer 1 Explorer 2 Win Type - Total 0 Types 0/0/0/0/0/0/0/0/0/0 Lore% 22 Gallery% 42 Achievement% 33 Wizard Run 0 Options --------- Layout 0 ASCII 0 Keyboard 0 Movement Mouse Keybinds 0 Fullscreen 2 Font 24/Smallcaps Map View 76x50 Zoom Use 6% Tactical HUD 0 Map Filters NONE Filters NONE Steam 1 RUN: 334e4320-ed46-42d0-b664-465a0b8dcbac